bitfinex/quotes_ETHUSD_20250430
["timestamp","ask_amount","ask_price","bid_price","bid_amount"]
[1746022780379,1.07029531,1754.6,1753.6,0.05701485]
[1746022780775,0.55,1754.5,1753.6,0.05701485]
[1746022780996,0.31220942,1754.5,1753.6,0.05701485]
[1746022781875,3.42508403,1754.7,1753.6,0.05701485]
[1746022782315,0.36550405,1755.0,1753.6,0.05701485]
[1746022782618,0.52038929,1754.9,1753.7,2.6]
[1746022782789,0.52038929,1754.9,1753.9,0.55]
[1746022782987,0.41937842,1755.4,1754.2,0.55]
[1746022783187,9.70855062,1755.7,1754.3,0.05697842]
[1746022783509,3.0,1755.4,1754.2,0.4119785]
[1746022783710,3.0,1755.5,1754.4,6.1069785]
[1746022784012,0.55,1755.3,1754.5,6.05]
[1746022784178,3.55,1755.3,1754.6,0.605]
[1746022785078,0.31206789,1755.2,1754.6,0.605]
[1746022785479,4.897,1755.1,1754.7,6.049]
[1746022785728,4.897,1755.1,1754.8,6.049]
[1746022786028,3.55,1755.3,1754.9,6.049]
[1746022786191,3.55,1755.3,1755.0,6.049]
[1746022787117,3.42794941,1755.5,1755.0,6.049]
[1746022787416,0.42794941,1755.5,1755.0,6.6539]
[1746022787582,3.0,1755.6,1755.0,6.6539]
[1746022787790,0.31139095,1755.5,1755.0,6.6539]
[1746022788483,0.31139095,1755.4,1755.0,6.6539]
[1746022788717,0.31139095,1755.4,1755.1,0.66539]
[1746022789094,7.62312056,1755.9,1755.1,0.66539]
[1746022789294,0.55,1755.7,1755.1,0.66539]
[1746022789622,3.0,1755.6,1755.1,0.66539]
[1746022789822,6.24582908,1755.7,1755.1,0.66539]
[1746022789823,3.55,1755.7,1755.1,0.66539]
[1746022790605,9.24576346,1755.7,1755.1,0.66539]
[1746022790791,3.55,1755.5,1755.2,6.048]
[1746022791303,5.69544175,1755.8,1755.2,6.048]
[1746022791622,0.55,1755.6,1755.2,6.048]
[1746022792185,8.69552539,1755.8,1755.2,6.048]
[1746022792488,9.13108137,1755.8,1755.2,6.048]
[1746022792817,0.55,1755.7,1755.2,6.048]
[1746022793323,3.55,1755.7,1755.2,6.048]
[1746022793479,3.0,1755.7,1755.2,6.048]
[1746022793920,3.43555598,1755.8,1755.2,6.048]
[1746022794749,3.55,1755.7,1755.2,6.048]
[1746022795423,3.43555598,1755.8,1755.2,6.048]
[1746022795630,9.13096567,1755.8,1755.2,6.048]
[1746022795847,0.43555598,1755.8,1755.2,6.6528]
[1746022796138,3.0,1755.8,1755.2,6.6528]
[1746022796827,0.55,1755.8,1755.2,6.6528]
[1746022797747,10.32894017,1755.9,1755.2,6.6528]
[1746022797946,16.02411954,1755.9,1755.2,6.6528]
[1746022798251,3.86142124,1755.8,1755.2,6.6528]
[1746022799040,3.55,1755.8,1755.2,6.6528]
[1746022799415,3.97426327,1755.8,1755.2,6.6528]
[1746022800447,3.0,1755.6,1755.0,0.0569695]
[1746022800746,3.0,1755.4,1754.9,24.897]
[1746022802041,6.95635779,1755.1,1754.9,24.897]
[1746022802216,6.95635779,1755.3,1754.9,24.897]
[1746022802418,3.0,1755.2,1754.9,24.897]
[1746022802622,0.55,1755.4,1754.9,24.897]
[1746022802931,9.95635779,1755.3,1754.9,24.897]
[1746022803904,6.95635779,1755.4,1754.9,24.897]
[1746022804103,3.0,1755.4,1755.0,2.4897]
[1746022804648,3.0,1755.4,1755.0,8.4987]
[1746022804829,9.24618684,1755.6,1755.0,8.4987]
[1746022805031,3.0,1755.2,1755.0,6.009]
[1746022805405,9.95635779,1755.1,1755.0,6.009]
[1746022805610,3.0,1755.1,1755.0,6.009]
[1746022808073,16.20403883,1755.1,1755.0,5.65770259]
[1746022808370,0.55,1754.8,1754.2,18.845]
[1746022808517,6.95635779,1754.5,1754.2,24.854]
[1746022808718,0.55,1754.8,1754.2,27.3394]
[1746022808954,0.31249107,1754.7,1754.2,27.3394]
[1746022809116,7.26884886,1754.7,1754.2,27.3394]
[1746022809331,7.26884886,1754.7,1754.2,24.854]
[1746022809732,6.95635779,1754.7,1754.2,24.854]
[1746022809929,3.0,1754.7,1754.2,24.854]
[1746022811181,3.0,1754.5,1754.2,24.854]
[1746022812086,6.95635779,1754.4,1754.2,24.854]
[1746022812297,3.0,1754.3,1754.2,18.845]
[1746022812586,3.0,1754.3,1754.1,6.01]
[1746022812873,3.0,1754.1,1753.8,3.80420341]
[1746022813139,3.0,1754.1,1753.8,4.78562375]
[1746022813443,3.0,1754.3,1753.8,4.78562375]
[1746022813853,3.0,1754.3,1753.8,0.98142034]
[1746022815384,3.43181674,1754.3,1753.8,0.98142034]
[1746022816802,3.43181674,1754.3,1753.7,6.01]
[1746022817016,7.50635779,1754.2,1753.7,6.01]
[1746022817301,6.95635779,1754.0,1753.7,6.01]
[1746022818104,0.55,1753.9,1753.7,6.01]
[1746022818364,3.55,1753.9,1753.7,6.01]
[1746022818569,6.95635779,1753.8,1753.7,6.01]
[1746022819522,0.55,1754.0,1753.7,6.01]
[1746022821104,3.0,1754.1,1753.7,6.01]
[1746022823506,3.0,1754.1,1753.7,6.611]
[1746022823808,0.55,1754.2,1753.7,6.611]
[1746022824306,5.69890427,1754.8,1753.7,6.611]
[1746022824509,5.69918452,1754.7,1753.7,6.611]
[1746022824671,6.95635779,1754.6,1753.7,6.611]
[1746022824873,3.0,1754.5,1753.8,0.6611]
[1746022825284,3.0,1754.5,1753.9,0.05700929]
[1746022826284,0.43358001,1754.6,1753.8,0.6611]
[1746022826515,3.0,1754.7,1753.8,0.6611]
[1746022827277,0.55,1754.6,1753.8,0.6611]
[1746022827673,1.5244,1755.0,1753.9,0.05700536]
[1746022827674,8.48075779,1755.0,1753.9,0.05700536]
[1746022827880,6.95635779,1755.2,1754.0,0.05699861]
[1746022828136,3.0,1755.1,1754.0,0.05699861]
[1746022829008,3.0,1755.1,1753.9,0.05699137]
[1746022829185,3.0,1755.1,1753.9,0.42310137]
[1746022829396,6.95635779,1755.2,1753.9,0.42310137]
[1746022829717,3.0,1755.3,1754.0,0.55]
[1746022830031,3.34995799,1755.3,1754.1,0.05698424]
[1746022830179,6.95635779,1755.2,1754.2,6.011]
[1746022830515,3.0,1755.1,1754.3,0.65808426]
[1746022831414,3.0,1755.1,1754.3,1.08622095]
[1746022831715,3.0,1755.1,1754.4,0.22660479]
[1746022835723,3.0,1755.1,1754.5,0.05698434]
[1746022835923,3.0,1755.3,1754.5,0.05698434]
[1746022839465,3.0,1755.3,1754.4,0.22660479]
[1746022840708,1.16255935,1755.6,1754.4,0.28358583]
[1746022840709,7.76316551,1755.6,1754.4,0.28358583]
[1746022841025,6.95635779,1755.7,1754.5,0.55]
[1746022841234,6.95635779,1755.7,1754.6,0.05696901]
[1746022841437,3.0,1755.6,1754.7,5.97]
[1746022841605,3.0,1755.6,1754.8,0.05696901]
[1746022841805,0.80680772,1756.0,1754.8,0.05696901]
[1746022842025,8.46725779,1756.1,1754.8,0.65966591]
[1746022842205,0.55,1756.0,1754.8,3.65966591]
[1746022842649,9.27406551,1756.3,1754.9,0.55]
[1746022842853,3.0,1756.2,1755.0,0.05695336]
[1746022843212,6.95635779,1756.1,1755.0,0.05695336]
[1746022845067,3.0,1756.0,1755.0,0.05695336]
[1746022845221,6.95635779,1755.9,1754.9,0.05695342]
[1746022845427,6.95635779,1755.9,1754.9,0.42291845]
[1746022845940,6.95635779,1755.9,1754.9,0.36596503]
[1746022846336,6.95635779,1755.7,1754.9,0.36596503]
[1746022846665,6.95635779,1755.7,1754.9,6.84771176]
[1746022846869,1.30213661,1756.4,1755.0,3.0569645]
[1746022847170,0.4135606,1756.4,1755.1,0.55]
[1746022847336,0.4135606,1756.4,1755.3,3.0]
[1746022847662,0.4135606,1756.4,1755.4,19.199944]
[1746022847869,0.4135606,1756.4,1755.4,19.143]
[1746022848669,6.95635779,1756.3,1755.5,3.0]
[1746022849370,6.95635779,1756.3,1755.4,19.143]
[1746022849528,6.95635779,1756.3,1755.5,1.9143]
[1746022849945,6.95635779,1756.1,1755.5,1.9143]
[1746022850362,6.95635779,1755.9,1755.4,19.143]
[1746022850964,6.95635779,1755.9,1755.4,18.843]
[1746022851184,0.4135606,1756.4,1755.4,18.843]
[1746022851479,0.4135606,1756.4,1755.5,3.0569573]
[1746022851679,6.95635779,1756.3,1755.4,19.27885835]
[1746022851884,6.95635779,1756.3,1755.5,1.92788584]
[1746022852766,3.4135606,1756.4,1755.5,4.9848349]
[1746022853750,3.4135606,1756.4,1755.5,4.92788584]
[1746022853948,3.4135606,1756.4,1755.5,1.92788584]
[1746022854278,6.95635779,1756.1,1755.5,1.92788584]
[1746022854482,6.95635779,1756.1,1755.6,5.966]
[1746022854684,2.192,1756.3,1755.6,5.966]
[1746022854685,9.14835779,1756.3,1755.6,5.966]
[1746022854874,3.0,1756.2,1755.6,5.966]
[1746022855043,6.95635779,1756.1,1755.6,5.966]
[1746022858150,6.95635779,1756.1,1755.6,6.5626]
[1746022858351,6.95635779,1756.3,1755.6,6.5626]
[1746022859969,3.4135606,1756.4,1755.6,6.5626]
[1746022860247,0.4135606,1756.4,1755.7,0.05694921]
[1746022860772,0.4135606,1756.4,1755.7,3.05694921]
[1746022860953,0.4135606,1756.4,1755.8,0.30569492]
[1746022861150,0.4135606,1756.4,1755.9,0.05693498]
[1746022861707,8.53915779,1757.3,1755.9,0.48172577]
[1746022861998,12.92235779,1757.5,1756.0,0.55]
[1746022862164,3.0,1757.4,1756.2,3.0]
[1746022862350,3.0,1757.4,1756.3,0.35691477]
[1746022862553,6.95635779,1757.5,1756.3,0.35691477]
[1746022863000,6.95635779,1757.6,1756.4,3.0]
[1746022863150,6.95635779,1757.6,1756.5,0.05690767]
[1746022863353,6.95635779,1757.6,1756.7,3.0]
[1746022863570,6.95635779,1757.6,1756.7,3.05690768]
[1746022864789,3.55,1757.5,1756.7,0.05690768]
[1746022865002,6.95635779,1757.2,1756.6,0.421921]
[1746022865165,3.55,1757.5,1756.7,5.965]
[1746022865353,6.95635779,1757.4,1756.7,6.60938371]
[1746022865554,6.95635779,1757.4,1756.7,5.965]
[1746022866093,0.55,1757.3,1756.7,5.965]
[1746022866584,6.95635779,1757.2,1756.7,5.965]
[1746022866965,3.0,1757.4,1756.7,5.965]
[1746022867154,6.24068332,1757.3,1756.7,5.965]
[1746022867492,6.95635779,1757.2,1756.7,5.965]
[1746022868099,0.55,1757.1,1756.7,5.965]
[1746022868597,6.95635779,1757.0,1756.7,5.965]
[1746022868895,3.0,1757.1,1756.7,5.965]
[1746022869182,3.0,1757.3,1756.7,6.5615]
[1746022871173,8.47045779,1757.6,1756.7,6.5615]
[1746022871390,3.0,1757.5,1756.7,6.5615]
[1746022873471,7.50635779,1757.6,1756.7,6.5615]
[1746022873676,7.50635779,1757.6,1756.8,0.65615]
[1746022874180,6.95635779,1757.4,1756.8,0.65615]
[1746022874382,6.95635779,1757.4,1756.7,5.965]
[1746022875384,3.55,1757.5,1756.7,6.02191307]
[1746022875782,3.55,1757.5,1756.7,5.965]
[1746022876088,6.95635779,1757.6,1756.7,5.965]
[1746022876812,6.95635779,1757.2,1756.7,5.965]
[1746022877017,6.95635779,1757.2,1756.7,6.5615]
[1746022877416,6.95635779,1757.2,1756.7,5.965]
[1746022878239,10.50635779,1757.4,1756.7,5.965]
[1746022878395,9.95635779,1757.4,1756.7,5.965]
[1746022879817,6.95635779,1757.0,1756.3,19.56912587]
[1746022880019,6.95635779,1757.0,1756.4,7.88491259]
[1746022880539,9.95635779,1757.2,1756.4,7.88491259]
[1746022881032,3.0,1757.3,1756.4,7.88491259]
[1746022882645,6.95635779,1757.6,1756.5,3.05691551]
[1746022882947,20.95041029,1757.8,1756.5,3.05691551]
[1746022883158,6.95635779,1757.6,1756.6,0.30569155]
[1746022883714,6.95635779,1757.6,1756.7,0.05690806]
[1746022884618,3.55,1757.7,1756.7,0.05690806]
[1746022884814,3.55,1757.7,1756.8,5.928]
[1746022885245,7.50635779,1757.6,1756.8,5.928]
[1746022885551,6.95635779,1757.6,1756.9,0.5928]
[1746022886361,10.50635779,1757.4,1756.4,1.95691259]
[1746022886658,3.0,1757.5,1756.5,0.05691368]
[1746022887654,6.95635779,1757.8,1756.6,0.55]
[1746022887864,6.95635779,1757.8,1756.8,3.0]
[1746022888157,6.95635779,1757.8,1756.9,0.3]
[1746022888918,0.31430921,1757.7,1756.9,0.73736666]
[1746022889121,0.31430921,1757.7,1756.9,0.3]
[1746022889541,0.31430921,1757.6,1756.9,0.3]
[1746022889730,0.31430921,1757.6,1756.9,0.35690233]
[1746022890160,0.31430921,1757.6,1756.9,0.3]
[1746022890329,0.31430921,1757.6,1757.0,0.05689909]
[1746022890661,6.95635779,1757.8,1757.0,0.05689909]
[1746022890826,6.95635779,1757.8,1756.9,0.3]
[1746022892022,0.31470779,1757.7,1756.9,0.73429786]
[1746022892227,0.31470779,1757.7,1756.9,0.3]
[1746022892428,0.31470779,1757.7,1756.9,0.35689913]
[1746022892841,6.95635779,1757.8,1756.9,0.35689913]
[1746022893131,0.31438992,1757.6,1756.9,0.3]
[1746022893730,0.31438992,1757.6,1756.9,0.3569014]
[1746022893939,6.95635779,1757.8,1756.9,0.3569014]
[1746022894140,6.95635779,1757.8,1756.9,0.3]
[1746022894843,6.95635779,1757.8,1756.9,0.35690139]
[1746022895157,0.3141633,1757.7,1756.9,0.78576731]
[1746022895322,0.3141633,1757.7,1757.0,0.55]
[1746022895523,1.0,1758.0,1757.1,0.05688985]
[1746022895793,7.95635779,1758.0,1757.2,5.898]
[1746022896063,7.95635779,1758.0,1757.3,0.5898]
[1746022896232,1.0,1758.0,1757.3,0.64668549]
[1746022896424,1.0,1758.0,1757.3,0.5898]
[1746022896860,1.0,1758.0,1757.3,1.02204484]
[1746022898136,1.0,1758.0,1757.4,0.05688548]
[1746022898668,1.0,1758.0,1757.3,1.02204484]
[1746022899232,7.95635779,1758.0,1757.3,1.02204484]
[1746022899466,6.95635779,1757.8,1757.2,5.897]
[1746022900176,0.55,1757.9,1757.2,5.897]
[1746022900377,1.0,1758.0,1757.2,6.32644985]
[1746022900583,6.95635779,1759.0,1757.3,5.46705074]
[1746022900876,6.95635779,1759.1,1758.3,0.55]
[1746022901076,6.95635779,1759.1,1758.4,0.05684452]
[1746022901376,11.58063718,1759.5,1758.4,0.05684452]
[1746022901377,6.95635779,1758.9,1758.4,0.05684452]
[1746022901678,6.95635779,1758.7,1758.1,5.897]
[1746022901843,2.33157034,1758.6,1758.2,0.5897]
[1746022902370,6.95635779,1758.5,1757.4,15.04670507]
[1746022902575,6.95635779,1758.1,1757.5,0.056865]
[1746022902760,1.38644702,1758.0,1757.3,0.05687985]
[1746022902963,1.38644702,1758.0,1757.2,5.897]
[1746022903316,1.38644702,1758.0,1757.3,3.05688293]
[1746022903475,3.0,1758.5,1757.3,3.05688293]
[1746022903476,6.95635779,1758.2,1757.3,0.05688293]
[1746022903654,9.93799441,1758.3,1757.3,0.59538829]
[1746022903855,5.68764946,1758.2,1758.1,3.80420341]
[1746022904063,0.42803874,1758.4,1758.1,3.22990341]
[1746022904264,10.48799441,1758.5,1758.1,3.22990341]
[1746022904465,16.17472333,1758.5,1758.1,3.22990341]
[1746022904771,16.17562949,1758.2,1758.1,3.22990341]
[1746022904973,16.99933799,1758.2,1758.1,3.22990341]
[1746022905156,18.96632797,1758.2,1758.1,0.55725655]
[1746022905885,18.96632797,1758.2,1758.1,0.43084702]
[1746022906556,13.27869289,1758.2,1758.1,0.43084702]
[1746022906739,13.27869289,1758.2,1757.3,11.94184082]
[1746022906740,0.31298998,1758.2,1757.8,5.896]
[1746022906938,0.31298998,1758.2,1757.9,6.4856]
[1746022907171,0.31298998,1758.2,1757.8,5.896]
[1746022907370,0.8237085,1758.7,1757.8,5.896]
[1746022907583,1.6342,1759.0,1757.8,5.896]
[1746022907584,6.93799441,1758.8,1757.9,0.05687841]
[1746022907827,3.0,1758.4,1757.8,5.896]
[1746022908172,0.55,1758.3,1757.8,5.896]
[1746022908375,3.0,1758.1,1757.8,5.896]
[1746022908583,3.55,1758.4,1757.8,6.4856]
[1746022908788,3.0,1758.2,1757.8,5.896]
[1746022909022,0.55,1758.1,1757.8,5.896]
[1746022909419,3.0,1758.0,1757.8,5.896]
[1746022909576,6.93799441,1758.1,1757.8,5.896]
[1746022910212,1.6468,1758.5,1757.9,0.05688541]
[1746022910708,3.0,1758.6,1757.8,6.542477]
[1746022910914,2.3862085,1759.0,1757.8,6.4856]
[1746022911111,8.93110024,1759.0,1757.9,0.05687311]
[1746022911429,8.93110024,1759.0,1757.8,6.4856]
[1746022911430,0.55,1758.6,1757.8,6.4856]
[1746022911582,3.0,1758.3,1757.8,6.4846]
[1746022911779,3.0,1758.3,1757.8,5.895]
[1746022913886,0.55,1758.6,1757.8,5.895]
[1746022913887,0.4232074,1758.4,1757.8,5.895]
[1746022914089,3.55,1758.6,1757.8,5.895]
[1746022914492,6.93799441,1758.7,1757.9,0.05687723]
[1746022914702,8.59959441,1759.1,1757.9,3.65206495]
[1746022915096,3.0,1759.0,1757.9,3.65206495]
[1746022915634,0.42076977,1759.0,1757.9,3.65206495]
[1746022915843,6.93799441,1758.8,1757.9,0.59518772]
[1746022916619,3.55,1758.8,1757.9,0.59518772]
[1746022916899,3.0,1758.8,1758.0,3.10009076]
[1746022917212,3.0,1758.8,1758.1,0.31000908]
[1746022917421,0.41681389,1759.0,1758.2,0.05685852]
[1746022917622,6.93799441,1759.5,1758.3,5.895]
[1746022917826,7.36280176,1759.5,1758.4,0.05685011]
[1746022917997,7.36280176,1759.5,1758.4,0.65203512]
[1746022918196,7.36280176,1759.5,1758.4,3.65203512]
[1746022918600,3.0,1759.4,1758.4,3.65203512]
[1746022918913,3.8237085,1759.4,1758.4,0.59518501]
[1746022919235,7.36280176,1759.5,1758.5,0.0568482]
[1746022919422,3.0,1759.4,1758.4,0.59518501]
[1746022919639,3.0,1759.4,1758.5,0.05684978]
[1746022919934,3.0,1759.4,1758.4,0.65203484]
[1746022920133,3.0,1759.4,1758.4,0.59518501]
[1746022920335,6.93799441,1758.9,1758.3,5.895]
[1746022920560,3.0,1758.8,1758.3,5.895]
[1746022920835,3.0,1758.5,1758.1,6.20400908]
[1746022921215,3.55,1758.8,1758.1,6.20400908]
[1746022921756,3.0,1758.8,1758.1,6.20400908]
[1746022921907,3.0,1758.8,1758.2,0.62040091]
[1746022922329,3.55,1759.1,1758.3,0.05686253]
[1746022922532,3.0,1759.1,1758.2,6.57125884]
[1746022922902,6.50767269,1759.4,1758.2,6.57125884]
[1746022922903,6.93799441,1759.4,1758.2,6.57125884]
[1746022923241,3.0,1759.3,1758.3,0.65712588]
[1746022923540,0.42207162,1759.3,1758.4,0.05684958]
[1746022923741,6.93799441,1759.4,1758.3,0.71397027]
[1746022923945,3.0,1759.3,1758.3,0.71397027]
[1746022924236,3.0,1759.0,1758.3,0.65712588]
[1746022925426,3.0,1758.7,1758.2,5.894]
[1746022925631,0.55,1758.6,1758.2,5.894]
[1746022926339,3.0,1758.4,1758.2,5.894]
[1746022927365,3.0,1758.4,1757.6,0.05687745]
[1746022927563,3.0,1758.4,1757.9,5.871]
[1746022927758,3.43551336,1758.4,1757.9,5.871]
[1746022928279,3.0,1758.1,1757.5,18.814]
[1746022928449,3.0,1758.1,1757.8,5.871]
[1746022928848,1.5362,1758.8,1757.8,6.4581]
[1746022929072,1.5362,1758.8,1757.9,0.05687723]
[1746022929237,6.93799441,1758.6,1757.9,0.05687723]
[1746022929441,3.0,1758.5,1757.8,6.4581]
[1746022929648,3.0,1758.5,1757.9,0.64581]
[1746022930652,0.55,1758.4,1757.8,5.871]
[1746022931152,3.0,1758.5,1757.8,5.871]
[1746022931352,3.0,1758.5,1757.9,0.05687859]
[1746022931947,8.68666714,1758.5,1757.8,5.871]
[1746022932470,3.0,1758.5,1757.8,5.871]
[1746022932782,3.0,1758.5,1757.9,0.5871]
[1746022933568,7.36461974,1758.6,1757.9,0.5871]
[1746022933569,0.42662533,1758.6,1757.9,0.64396974]
[1746022933874,3.0,1758.8,1757.9,0.64396974]
[1746022934080,6.93799441,1758.9,1757.9,0.5871]
[1746022934280,3.0,1758.8,1758.0,0.05686653]
[1746022934654,3.0,1758.8,1757.9,0.5871]
[1746022935384,5.68618982,1758.7,1757.9,0.5871]
[1746022935697,9.93799441,1758.6,1757.8,5.871]
[1746022936103,6.93799441,1758.3,1757.5,18.814]
[1746022936306,3.0,1758.2,1757.5,24.686]
[1746022936603,3.0,1758.2,1757.6,2.4686]
[1746022936908,3.0,1758.5,1757.6,2.52548179]
[1746022937250,3.0,1758.7,1757.6,2.52548179]
[1746022937506,0.43139171,1758.9,1757.8,0.55]
[1746022937711,0.43139171,1758.9,1757.9,0.05685951]
[1746022937856,1.597,1759.0,1758.0,5.872]
[1746022938385,0.86514999,1758.9,1758.0,5.872]
[1746022939104,0.73808617,1758.9,1758.1,0.05686883]
[1746022939303,0.42293618,1758.9,1758.1,0.59288688]
[1746022939597,3.0,1759.0,1758.1,0.59288688]
[1746022939959,3.0,1759.0,1758.1,0.64975152]
[1746022940155,3.0,1759.0,1758.1,0.59288688]
[1746022940382,3.0,1759.0,1758.1,0.64974343]
[1746022940578,12.80999441,1759.1,1758.1,0.64974343]
[1746022940579,5.872,1759.1,1758.1,0.64974343]
[1746022941706,3.0,1759.0,1758.1,0.64974343]
[1746022941907,0.43080158,1759.1,1758.1,0.64974343]
[1746022942090,0.43080158,1759.1,1758.2,3.04658944]
[1746022942272,3.0,1759.3,1758.3,0.36151132]
[1746022943115,3.0,1759.3,1758.4,3.04658944]
[1746022943308,7.48799441,1759.4,1758.5,5.871]
[1746022943458,6.93799441,1759.4,1758.6,0.05684862]
[1746022943790,3.52563485,1759.3,1758.5,5.871]
[1746022943992,9.93799441,1759.1,1758.5,5.871]
[1746022944823,3.55,1759.3,1758.6,0.0568561]
[1746022945019,0.52579427,1759.2,1758.5,5.871]
[1746022945195,0.52579427,1759.2,1758.6,0.05685351]
[1746022945397,0.52579427,1759.2,1758.5,5.871]
[1746022945589,0.43405033,1759.4,1758.6,0.64394477]
[1746022945794,3.0,1759.3,1758.6,0.5871]
[1746022945993,0.55,1759.2,1758.5,5.871]
[1746022946625,0.55,1759.2,1758.6,0.05685547]
[1746022947122,0.55,1759.2,1758.4,5.871]
[1746022947323,3.0,1759.3,1758.4,5.871]
[1746022947324,6.93799441,1759.4,1758.5,0.05685538]
[1746022947534,6.09575377,1759.9,1758.6,0.55]
[1746022947535,8.48089441,1759.8,1758.6,0.55]
[1746022947732,0.4135606,1759.9,1758.8,0.55]
[1746022948023,0.4135606,1759.9,1758.9,5.9268165]
[1746022948231,0.4135606,1759.9,1759.0,4.14268165]
[1746022948411,0.4135606,1759.9,1759.1,0.05682147]
[1746022949310,0.4135606,1759.9,1759.2,0.55]
[1746022949496,0.4135606,1759.9,1759.3,0.05681476]
[1746022949694,0.4135606,1759.9,1759.4,5.87]
[1746022949895,0.4135606,1759.9,1759.5,0.587]
[1746022950499,0.4135606,1759.9,1759.5,0.64381641]
[1746022950696,0.4135606,1759.9,1759.5,0.64381632]
[1746022953138,3.55,1759.5,1758.8,10.7948631]
[1746022953439,3.55,1759.5,1758.8,6.00534941]
[1746022953640,3.55,1759.5,1758.9,5.869]
[1746022954342,2.4294987,1759.5,1758.9,5.869]
[1746022954526,0.55,1759.8,1759.0,0.0568449]
[1746022955216,6.93799441,1759.6,1758.9,5.869]
[1746022955421,6.93799441,1759.6,1758.9,6.94848631]
[1746022955619,6.93799441,1759.6,1758.9,7.00533016]
[1746022955803,8.57729441,1759.6,1758.9,6.94848631]
[1746022955996,6.93799441,1759.6,1759.0,0.05684385]
[1746022956199,8.57729441,1759.8,1759.0,0.70053302]
[1746022956398,3.0,1759.7,1759.0,0.70053302]
[1746022956607,7.06743195,1759.9,1759.0,0.70053302]
[1746022956608,3.83515139,1759.9,1759.1,0.05683767]
[1746022956846,3.83515139,1759.9,1759.0,0.70053302]
[1746022957507,0.4135606,1759.9,1759.1,0.05682988]
[1746022957922,3.4135606,1759.9,1759.1,0.05682988]
[1746022958099,0.4135606,1759.9,1759.1,0.05682988]
[1746022958598,3.4135606,1759.9,1759.0,0.70053302]
[1746022960023,3.4135606,1759.9,1759.1,0.05682989]
[1746022960541,3.4135606,1759.9,1759.0,0.70053302]
[1746022961039,3.4135606,1759.9,1759.1,0.05682993]
[1746022961237,3.4135606,1759.9,1759.0,0.75735973]
[1746022961433,3.84129206,1759.9,1759.0,0.75735973]
[1746022961733,3.84129206,1759.9,1759.1,5.852]
[1746022961930,3.84129206,1759.9,1759.2,0.5852]
[1746022962299,3.0,1759.6,1759.1,5.852]
[1746022962494,3.0,1759.6,1758.6,5.852]
[1746022962700,3.74077641,1759.6,1758.7,0.05684101]
[1746022962900,1.56448491,1759.5,1758.7,0.5908841]
[1746022963122,1.56448491,1759.5,1758.8,0.05683973]
[1746022964045,0.84129206,1759.9,1758.8,0.05683974]
[1746022964340,0.4135606,1759.9,1758.9,0.55]
[1746022964505,0.4135606,1759.9,1759.0,0.05682495]
[1746022964700,0.4135606,1759.9,1759.1,5.852]
[1746022964913,0.4135606,1759.9,1759.2,0.64202681]
[1746022965463,3.4135606,1759.9,1759.3,5.852]
[1746022965755,3.83483402,1759.9,1759.2,0.5852]
[1746022965951,3.83483402,1759.9,1758.5,0.59278554]
[1746022965952,3.83483402,1759.9,1759.3,5.852]
[1746022966499,9.51700934,1759.9,1759.3,5.852]
[1746022966704,3.83483402,1759.9,1759.3,5.852]
[1746022967720,3.83483402,1759.9,1759.4,0.05683012]
[1746022967921,3.83483402,1759.9,1759.3,5.852]
[1746022968219,3.83483402,1759.9,1759.4,0.5852]
[1746022968422,0.83483402,1759.9,1759.4,0.5852]
[1746022968642,0.4135606,1759.9,1759.4,0.5852]
[1746022969321,0.4135606,1759.9,1759.4,0.64201722]
[1746022970545,0.4135606,1759.9,1759.4,0.5852]
[1746022971149,0.4135606,1759.9,1759.3,5.852]
[1746022971959,0.4135606,1759.9,1759.4,0.05682992]
[1746022972250,0.4135606,1759.9,1759.3,5.852]
[1746022972466,0.4135606,1759.9,1759.4,0.05682441]
[1746022972618,0.4135606,1759.9,1759.3,5.90881477]
[1746022972818,0.4135606,1759.9,1759.4,0.59088148]
[1746022973340,5.6785917,1761.0,1759.5,0.60681752]
[1746022973546,5.67903063,1760.9,1759.5,0.60681752]
[1746022973853,3.0,1760.6,1759.5,0.05681752]
[1746022974064,0.33472039,1760.8,1759.6,5.851]
[1746022974229,0.33472039,1760.8,1759.7,0.05680312]
[1746022974551,0.52713982,1760.7,1759.7,0.05680312]
[1746022974848,3.32877258,1760.8,1759.7,0.05680312]
[1746022975054,3.0,1760.7,1759.7,0.64758343]
[1746022975849,0.52702752,1760.6,1759.8,5.851]
[1746022976065,3.0,1760.4,1759.8,5.851]
[1746022976254,0.55,1760.3,1759.8,5.851]
[1746022976557,0.32877258,1760.8,1759.9,3.0]
[1746022976865,1.6626,1761.1,1760.0,0.3]
[1746022977154,0.31650414,1761.0,1760.1,0.05679056]
[1746022977371,0.31650414,1761.0,1760.2,5.85]
[1746022977517,0.31650414,1761.0,1760.3,0.05678872]
[1746022977724,2.09584182,1761.1,1760.3,0.64746759]
[1746022977958,0.33399745,1761.3,1760.4,0.55]
[1746022978172,0.4135606,1761.7,1760.5,8.90676994]
[1746022978467,6.93799441,1761.5,1760.5,5.85]
[1746022978619,1.5013,1761.4,1760.6,6.435]
[1746022978819,9.18687651,1761.7,1760.7,0.05678445]
[1746022979020,0.31573584,1761.6,1760.7,0.05678445]
[1746022979222,0.4135606,1761.7,1760.7,3.05678445]
[1746022979430,0.4135606,1761.7,1760.8,0.30567844]
[1746022979637,0.4135606,1761.7,1760.9,0.05676421]
[1746022980621,0.4135606,1761.7,1760.7,0.05676584]
[1746022981249,0.5,1761.2,1760.7,3.05676584]
[1746022981457,0.5,1761.2,1760.8,0.30567658]
[1746022981748,0.5,1761.2,1760.7,0.05676584]
[1746022982359,0.5,1761.2,1760.6,6.435]
[1746022982767,0.5,1761.2,1760.7,0.05677771]
[1746022983352,0.5,1761.2,1760.6,0.585]
[1746022983573,0.5,1761.2,1760.4,24.641]